Cogmind - Beta 16 @@@ ROGUE MODE // 2025.11.30 @ 21:25:14 Player: Ayera Result: Destroyed by as-06189 with Assembled Heavy Rifle Performance ------------- Evolutions (0) 0 Regions Visited (2) 400 Robots Destroyed (15) 75 Value Destroyed (483) 483 Prototype IDs (0) 0 Alien Tech Used (0) 0 Bonus (0) 0 TOTAL SCORE: 958 Bonus ------- None Cogmind --------- Core Integrity 0/250 Matter 292/300 Energy 95/100 System Corruption 15% Temperature Cool (0) Movement Core (100) Ox1 Location -10/Mines Parts ------- > --- POWER (1) -------- (None) > --- PROPULSION (2) --- (None) > --- UTILITY (2) ------ Small Storage Unit Sensor Array > --- WEAPON (2) ------- (None) > --- INVENTORY (8) ---- (None) Peak State ------------ > --- POWER ------------ Ion Engine > --- PROPULSION ------- Improved Aluminum Leg Improved Aluminum Leg > --- UTILITY ---------- Small Storage Unit Shield Generator > --- WEAPON ----------- Medium Laser Small Laser > --- INVENTORY -------- (None) [Rating: 10] Favorites ----------- Power Ion Engine Engine Ion Engine Propulsion Improved Aluminum Leg Leg Improved Aluminum Leg Utility Small Storage Unit Device Shield Generator Storage Small Storage Unit Weapon Medium Laser Energy Gun Medium Laser Build | -11 -10 -10 ------- Run | Yrd Mat Min Slots Evolved . | . . . Power . | . . . Propulsion . | . . . Utility . | . . . Weapon . | . . . Parts Attached 13 | 6 6 1 Power 1 | 1 . . Engine 1 | 1 . . Core . | . . . Reactor . | . . . Propulsion 6 | 2 4 . Treads . | . . . Leg 6 | 2 4 . Wheel . | . . . Hover . | . . . Flight . | . . . Utility 4 | 1 2 1 Device 3 | . 2 1 Storage 1 | 1 . . Processor . | . . . Hackware . | . . . Protection . | . . . Artifact . | . . . Weapon 2 | 2 . . Energy Gun 2 | 2 . . Energy Cannon . | . . . Ballistic Gun . | . . . Ballistic Cannon . | . . . Launcher . | . . . Special Weapon . | . . . Impact Weapon . | . . . Slashing Weapon . | . . . Piercing Weapon . | . . . Special Melee Weapon . | . . . Unidentified Prototypes . | . . . Parts Lost 6 | . . 6 Power 1 | . . 1 Propulsion 2 | . . 2 Utility 1 | . . 1 Weapon 2 | . . 2 Highest Loss Streak 6 | . . 6 To Critical Strikes . | . . . Average Backups . | 1 . 1 Power . | . . . Propulsion . | . . . Utility . | . . 1 Weapon . | . . . Tool/Special . | . . . Unused Backups . | . . . Power . | . . . Propulsion . | . . . Utility . | . . . Weapon . | . . . Tool/Special . | . . . Average Slot Usage (%) 97 | . 99 73 Engine 13 | . 14 11 Leg 27 | . 28 23 Device 13 | . 13 9 Storage 14 | . 14 14 Energy Gun 27 | . 28 14 Peak Build Rating 10 | 6 10 10 Average Rating 9 | 3 9 6 On Entrance 5 | . 6 10 Avg Prop Armor Cover (%) . | . . . Naked Turns . | . . . Heaviest Build 15 | 13 15 15 Greatest Support 26 | 20 26 26 Greatest Overweight (x) 1 | . . 1 Average Overweight (x) . | . . . Largest Inventory Capacity 8 | 8 8 8 Average Capacity 7 | 6 8 8 Most Carried 5 | 5 3 1 Average Carried . | 1 . . Final Capacity 8 | 8 8 8 Final Carried 1 | . 1 . Class Distribution -------------------- 100% | Mutant Dominant Class ---------------- Mutant | -10/Materials Mutant | -10/Mines Resources | -11 -10 -10 ----------- Run | Yrd Mat Min Matter Collected 328 | 178 148 2 Remotely . | . . . Salvage Created 591 | . 591 . Parts 27 | . 27 . Haulers Intercepted . | . . . Recyclers Shooed . | . . . Parts Field Recycled . | . . . Retrieved Matter . | . . . Parts Self-Destructed . | . . . Prevented . | . . . Parts Restored . | . . . Kills | -11 -10 -10 ------- Run | Yrd Mat Min Combat Hostiles Destroyed 12 | . 12 . Guns 11 | . 11 . Classes Destroyed 3 | . 3 . Tunneler 1 | . 1 . Watcher 2 | . 2 . Grunt 12 | . 12 . Best Kill Streak 5 | . 5 . Combat Bots Only 2 | . 2 . Max Kills in Single Turn 1 | . 1 . Gunslinging . | . . . Exploded . | . . . Melee . | . . . Uniques/NPCs Destroyed . | . . . Combat | -11 -10 -10 -------- Run | Yrd Mat Min Hostile Shots Fired 104 | . 73 31 Missed 25 | . 19 6 Hits 79 | . 54 25 Melee 6 | . . 6 Projectile 73 | . 54 19 Critical Strikes 1 | . 1 . Damage Taken 966 | . 546 420 Core 255 | . 79 176 Absorbed by Shields 221 | . 207 14 Core Remaining (%) 100 | 100 . . Volleys Fired 60 | . 59 1 Largest 2 | . 2 2 Hottest 90 | . 90 90 Shots Fired 115 | . 113 2 Gun 115 | . 113 2 Cannon . | . . . Launcher . | . . . Special . | . . . Kinetic . | . . . Thermal 115 | . 113 2 Explosive . | . . . Electromagnetic . | . . . Robot Hit Streak 8 | . 8 1 Robot Miss Streak 5 | . 5 1 Penetration Max . | . . . Secondary Targets 4 | . 4 . Max Gunslinging Chain 1 | . 1 . Shots Hit Robots 73 | . 72 1 Core Hits 33 | . 31 2 Critical Kills . | . . . Critical Parts Destroyed . | . . . Critical Strikes 4 | . 3 1 Burn 4 | . 3 1 Melee Attacks . | . . . Impact . | . . . Slashing . | . . . Piercing . | . . . Sneak Attacks . | . . . Combat Hostiles . | . . . Follow-up Attacks . | . . . Damage Inflicted 938 | . 923 15 Guns 863 | . 851 12 Cannons . | . . . Explosions 69 | . 69 . Melee . | . . . Ramming 6 | . 3 3 Kinetic . | . . . Thermal 863 | . 851 12 Explosive . | . . . Electromagnetic 69 | . 69 . Impact . | . . . Slashing . | . . . Piercing . | . . . Highest Corruption 15 | . 1 15 Average Corruption 1 | . 1 7 Corruption Purged . | . . . Corruption Blocked . | . . . Effects 6 | . 5 1 Message Errors 1 | . 1 . Matter Fused 1 | . 1 . Heat Flow Errors 2 | . 2 . Data Loss (minor) 1 | . 1 . Misdirections 1 | . . 1 Overload Shots . | . . . Overflow Damage . | . . . Projectiles . | . . . Explosions . | . . . Melee . | . . . Knockbacks 1 | . 1 . Impact 1 | . 1 . Kinetic . | . . . Secondary . | . . . Self-Inflicted Damage 26 | . 25 1 Shots 1 | . 1 . Rammed 1 | . . 1 Targets Rammed 2 | . 1 1 Kicked 1 | . 1 . Crushed . | . . . Highest Temperature 489 | . 489 30 Average Temperature 144 | . 147 12 Received Heat Transfer 388 | . 268 120 Effects 5 | . 5 . Shutdowns 2 | . 2 . Energy Bleed 2 | . 2 . Interference 1 | . 1 . Siege Activations . | . . . Martial Activations . | . . . Shielding Activations . | . . . Robots Disrupted . | . . . Combat Hostiles . | . . . Robots Corrupted . | . . . Combat Hostiles . | . . . Parts Fried . | . . . Impact Corruptions . | . . . Robots Melted 1 | . 1 . Combat Hostiles 1 | . 1 . Parts Melted 6 | . 6 . Heat Transferred 2625 | . 2514 111 Parts Sabotaged . | . . . Parts Stolen . | . . . Parts Stripped . | . . . Power Chain Reactions . | . . . Alert | -11 -10 -10 ------- Run | Yrd Mat Min Maximum Alert Level . | . . . Low Security (%) 100 | 100 100 100 Level 1 . | . . . Level 2 . | . . . Level 3 . | . . . Level 4 . | . . . Level 5 . | . . . High Security . | . . . Max Security . | . . . Peak Influence 112 | . 112 3 Initial 3 | . . 3 Average 41 | . 44 . Influence Increases 339 | . 339 . Destroy 0b10 Robot/C 240 | . 240 . Destroy 0b10 Robot/NC 15 | . 15 . Destroy Leader 54 | . 54 . Disable Machine 15 | . 15 . Lose Combat Pursuer 15 | . 15 . Influence Decreases 339 | . 331 8 Entered New Map 5 | . . 5 Time Decay 331 | . 331 . Lost Part 3 | . . 3 Squads Dispatched 3 | . 3 . Investigation 2 | . 2 . Extermination . | . . . Reinforcement 1 | . 1 . Assault . | . . . Garrison . | . . . Intercept . | . . . Searches Triggered . | . . . Construction Impeded . | . . . Haulers Reinforced . | . . . Active Scanning Responses . | . . . Cargo Convoy Interrupts . | . . . Stealth | -11 -10 -10 --------- Run | Yrd Mat Min Distress Signals 4 | . 4 . Communications Jammed . | . . . Distress Signals . | . . . Times Spotted 37 | . 17 20 Peak Tracking Total 16 | . 3 16 Tactical Retreats 1 | . 1 . Traps | -11 -10 -10 ------- Run | Yrd Mat Min Traps Triggered 4 | . 4 . Indirectly 1 | . 1 . Trap Hack Attempts . | . . . Triggered . | . . . Disarmed . | . . . Reprogrammed . | . . . Reused . | . . . Traps Extracted . | . . . Installed . | . . . Triggered . | . . . Machines | -11 -10 -10 ---------- Run | Yrd Mat Min Machines Disabled 1 | . 1 . Max in Single Turn 1 | . 1 . Machines Repaired . | . . . Machines Dismantled . | . . . Machines Sabotaged . | . . . Overloaded Fab Kills . | . . . Hacking | -11 -10 -10 --------- Run | Yrd Mat Min Machines Accessed 1 | . 1 . Terminals . | . . . Fabricators . | . . . Repair Stations 1 | . 1 . Recycling Units . | . . . Scanalyzers . | . . . Garrison Access . | . . . Total Hacks 1 | . 1 . Successful . | . . . Failed 1 | . 1 . Catastrophic . | . . . Database Lockouts . | . . . Manual . | . . . Terminals . | . . . Fabricators . | . . . Repair Stations 1 | . 1 . Recycling Units . | . . . Scanalyzers . | . . . Garrison Access . | . . . Terminal Hacks . | . . . Fabricator Hacks . | . . . Repair Station Hacks . | . . . Recycling Unit Hacks . | . . . Scanalyzer . | . . . Garrison Access Hacks . | . . . Unauthorized Hacks . | . . . Terminals . | . . . Fabricators . | . . . Repair Stations . | . . . Recycling Units . | . . . Scanalyzers . | . . . Garrison Access . | . . . Data Cores Recovered . | . . . Used . | . . . Hacking Detections . | . . . Full Trace Events . | . . . Feedback Events . | . . . Feedback Blocked . | . . . Robot Schematics Acquired . | . . . Robots Built . | . . . Authchips . | . . . Time . | . . . Total Robot Build Rating . | . . . Part Schematics Acquired . | . . . Parts Built . | . . . Authchips . | . . . Time . | . . . Total Part Build Rating . | . . . Part Studies Acquired . | . . . Parts Repaired . | . . . Time . | . . . Parts Recycled . | . . . Recycled Matter . | . . . Retrieved Matter . | . . . Retrieved Components . | . . . Parts Scanalyzed . | . . . Part Schematics Acquired . | . . . Parts Damaged . | . . . Bothacking | -11 -10 -10 ------------ Run | Yrd Mat Min Used RIF Installer . | . . . Robots Hacked . | . . . Non-combat . | . . . Combat . | . . . Robot Hacks Applied . | . . . Relay Couplers Released . | . . . Fabnet Peak Effective % . | . . . Robots Rewired . | . . . Allies Hacked . | . . . Hacks Repelled . | . . . Allies | -11 -10 -10 -------- Run | Yrd Mat Min Total Allies . | . . . Largest Group . | . . . Highest-Rated Group . | . . . Highest-Rated Ally . | . . . Total Orders . | . . . Ally Attacks . | . . . Total Damage . | . . . Kills . | . . . Allies Corrupted . | . . . Allies Melted . | . . . Intel | -11 -10 -10 ------- Run | Yrd Mat Min Active Infowar (turns) 5 | . . 5 Sensors 5 | . . 5 Robot Analysis Total . | . . . Derelict Logs Recovered . | . . . Drone Launches . | . . . Drone Recoveries . | . . . Exploration | -11 -10 -10 ------------- Run | Yrd Mat Min Turns Passed 1020 | 37 940 43 Spaces Moved 674 | 28 613 33 Core 17 | 10 . 7 Treads . | . . . Legs 657 | 18 613 26 Wheels . | . . . Hover . | . . . Flight . | . . . Fastest Speed 50 | 50 120 100 Average Speed 118 | 95 120 115 Slowest Speed 120 | 120 120 120 Overloaded Moves . | . . . Propulsion Burnouts . | . . . Robots Hopped . | . . . Potential Cave-ins . | . . . Cave-ins Triggered . | . . . Exploration Rate (%) 33 | 3 90 7 Regions Visited 2 Branch Regions 1 Pre-discovered Areas . | . . . Known Exits Taken . | . . . Unknown Exits Taken 2 | 1 1 . Scrap Searched . | . . . Spaces Dug . | . . . Terrain Destroyed . | . . . Melee . | . . . Projectile . | . . . AOE . | . . . Terrain Rammed . | . . . Walls Destroyed . | . . . Machines Disabled . | . . . Actions | -11 -10 -10 --------- Run | Yrd Mat Min Total 778 | 38 704 36 Wait 14 | . 14 . Move 672 | 27 612 33 Hop . | . . . Pick Up 12 | 5 7 . Fast Attach 1 | 1 . . Attach 7 | 5 1 1 Detach . | . . . Swap 5 | . 5 . Drop 5 | . 5 . Fire 60 | . 59 1 Melee . | . . . Ram 1 | . . 1 Kick 1 | . 1 . Crush . | . . . Escape Stasis . | . . . Rewire . | . . . Trap . | . . . Miscellaneous . | . . . Route ------- -11/Scrapyard -10/Materials (discovered 5 exits: [*Mat x3] / [*Min] / [*Sub]) -10/Mines History --------- Turn | Location | Event 5 | -11/Scrapyard | Discovered new exit (range 16) 38 | -11/Scrapyard | Entered Materials 311 | -10/Materials | Build established: Mutant 311 | -10/Materials | Discovered new exit (range 16) 473 | -10/Materials | Discovered new exit (range 13) 517 | -10/Materials | Discovered new exit (range 6) 617 | -10/Materials | Discovered new exit (range 15) 830 | -10/Materials | Discovered new exit (range 4) 978 | -10/Materials | Entered Mines 979 | -10/Mines | Assembled infested the area 984 | -10/Mines | Assisted by a Guerilla fighting off Assembled 1013 | -10/Mines | System corruption reached 10% 1014 | -10/Mines | Core integrity fell below 50% 1017 | -10/Mines | Core integrity fell below 20% 1021 | -10/Mines | Destroyed by as-06189 with Assembled Heavy Rifle Last Messages --------------- 00996_ Knocked back. 00998_ HV Slug penetrates as-93698. 00998_ as-93698 suffers critical hit (Destroy). 01002_ as-28242 suffers critical hit (Destroy). 01002_ as-28242 knocked back. 01004_ as-28242 destroyed. 01006_ 3U-WG3(h) system corrupted by crushing effect. 01006_ 3U-WG3(h) knocked back. 01008_ HV Slug penetrates Wall. 01010_ as-48206 destroyed. 01012_ Imp. Aluminum Leg destroyed. 01012_ Ion Engine destroyed. 01012_ System corrupted by crushing effect (+4). 01012_ System corrupted by crushing effect (+2). 01012_ Imp. Aluminum Leg destroyed. 01013_ Slammed into as-06189. 01016_ 3U-WG3(h) destroyed. 01017_ Acquired 2 matter. 01018_ as-71251 destroyed. Map ----- +----------------------------------------------------+ | | | | | | | | | | | | | | | | | | | | | | | | | | | | | | | | | ?????????????????????????????????? | | ?????????????????????????????????? | | ?????????????##??????????????????? | | ???????????? ##?????????????????? | | ???????##??? #?????????????????? | | ??????# ?? #?????????????????? | | ??????# #?? #?????????????????? | | ???#### #? #?????????????????? | | ???#;;# ## ##????????????????? | | ???#; @ < #????????????????? | | ????#% aa #???????????????? | | ????#% ### #???????????????? | | ????# #### ##???????????????? | | ??### %# ## ##????????????????? | | ??#"#??##"######?????????????????? | | ???#%=%% #?????????????????????? | | ???#!=??? #?????????????????????? | | ???# %?? #?????????????????????? | | ???# #?????????????????????? | | ??#" #?????????????????????? | | ??## ?% #?????????????????????? | | ???#####%#"#?????????????????????? | | ???????#?"##?????????????????????? | | ???????" #???????????????????????? | | ???????# #???????????????????????? | | ??????? =%???????????????????????? | | ???????###???????????????????????? | | ?????????????????????????????????? | | ?????????????????????????????????? | | ?????????????????????????????????? | | ?????????????????????????????????? | | ?????????????????????????????????? | | ?????????????????????????????????? | | ?????????????????????????????????? | +----------------------------------------------------+ Best States ------------- Heat Dissipation 25 Energy Generation 10 Energy Capacity 250 Matter Stores 300 Matter Capacity 300 Sight Range 16 Robot Scan Range 14 Terrain Scan Density 10 Evasion (%) 55 Item Schematics ----------------- None Robot Schematics ------------------ None Fabricated ------------ Nothing Repaired ---------- Nothing Studied --------- None Alien Tech Used ----------------- None Achievements -------------- None Challenges ------------ None Game ------ Seed TripodAlloyCalibrator Manual? 0 Play Time 00:10:39 Cumulative 27.1 hours Start 2025.11.30 @ 21:15:43 End 2025.11.30 @ 21:25:14 Sessions 1 Manual Loads 0 Difficulty Rogue Special Mode None Game No. 51 Rogue 51 Adventurer 0 Explorer 0 Win Type - Total 0 Types 0/0/0/0/0/0/0/0/0/0 Lore% 10 Gallery% 24 Achievement% 14 Wizard Run 0 Options --------- Layout 1 ASCII 0 Keyboard 0 Movement Numpad Keybinds 0 Fullscreen 1 Font 32/SmallcapsGlow Map View 50x40 Zoom Use 0% Tactical HUD 1 Map Filters NONE Filters NONE Steam 1 RUN: 037e0cb9-e1c0-4300-96af-a0388f299d70